{"text_format":"2","workbook":"xlsx","n_sheets":9,"sheets":["Záradék","Összesítő","Felvonulási létesítmények","Költségtérítés tételek","Fa szerkezetek, hidegburkolás","Vakolás és rabicolás","Szárazépítészet","Felületképzés (festés, mázolás,","Takarítási munkák"],"not_rendered":{"charts":0,"images":0,"macros":0,"external_links":0,"defined_names":0,"comments":0,"pivot_tables":0},"unopened":[],"bounds":{"document_bytes":16777216,"sheet_cells":100000,"run_cost":"one","rows_first":2000,"rows_last":500,"rows_between":2000,"halvings":0,"cell_chars":16384,"cell_head_chars":4096},"cells_cut":0,"cells_raw":0,"read":"whole","date_system":"1900"}

{"sheet":"Záradék","index":0,"n_rows":27,"n_cols":4,"rows_kept":27,"cut":false,"hidden":false,"merged":[[0,0,0,3],[1,0,1,3],[2,0,2,3],[16,0,16,3],[20,2,20,3],[21,2,21,3],[22,2,22,3],[26,1,26,2],[13,0,13,3],[14,0,14,3],[15,0,15,3]]}
[]
[]
[]
[]
["Név :  SZTE JGYTK",null,"                                       "]
["                                       ",null,"                                       "]
["Cím :       ",null," Kelt: 2024."]
["                                       ",null," Szám         :.............           "]
["                                       ",null," Teljesítés:20.. év...........hó...nap "]
["A munka leírása:                       ",null," Készítette   : "]
["Alagsor felújítása"]
["                                                                              "]
[]
[]
[]
[]
["Költségvetés főösszesítő (HUF)"]
["Megnevezés",null,"Anyagköltség","Díjköltség"]
["1. Építmény közvetlen költségei",null,{"$f":"ROUND(SUM(Összesítő!B3:B8),0)","v":0},{"$f":"ROUND(SUM(Összesítő!C3:C8),0)","v":0}]
["1.1 Közvetlen önköltség összesen",null,{"$f":"ROUND(C19,0)","v":0},{"$f":"ROUND(D19,0)","v":0}]
["2.1 ÁFA vetítési alap",null,{"$f":"ROUND(C20+D20,0)","v":0}]
["2.2 Áfa",0.27,{"$f":"ROUND(C21*B22,0)","v":0}]
["3.  A munka ára",null,{"$f":"ROUND(C21+C22,0)","v":0}]
[]
[]
[]
[null,"Aláírás"]

{"sheet":"Összesítő","index":1,"n_rows":9,"n_cols":3,"rows_kept":9,"cut":false,"hidden":false,"merged":[]}
["Munkanem megnevezése","Anyag összege","Díj összege"]
["Felvonulási létesítmények",{"$f":"'Felvonulási létesítmények'!H4","v":0},{"$f":"'Felvonulási létesítmények'!I4","v":0}]
["Költségtérítés tételek",{"$f":"'Költségtérítés tételek'!H5","v":0},{"$f":"'Költségtérítés tételek'!I5","v":0}]
["Fa szerkezetek, hidegburkolás",{"$f":"'Fa szerkezetek, hidegburkolás'!H11","v":0},{"$f":"'Fa szerkezetek, hidegburkolás'!I11","v":0}]
["Vakolás és rabicolás",{"$f":"'Vakolás és rabicolás'!H6","v":0},{"$f":"'Vakolás és rabicolás'!I6","v":0}]
["Szárazépítés",{"$f":"Szárazépítészet!H5","v":0},{"$f":"Szárazépítészet!I5","v":0}]
["Felületképzés",{"$f":"'Felületképzés (festés, mázolás,'!H43","v":0},{"$f":"'Felületképzés (festés, mázolás,'!I43","v":0}]
["Takarítási munkák",{"$f":"'Takarítási munkák'!H6","v":0},{"$f":"'Takarítási munkák'!I6","v":0}]
["Összesen:",{"$f":"ROUND(SUM(B3:B8),0)","v":0},{"$f":"ROUND(SUM(C3:C8), 0)","v":0}]

{"sheet":"Felvonulási létesítmények","index":2,"n_rows":4,"n_cols":9,"rows_kept":4,"cut":false,"hidden":false,"merged":[]}
["Ssz.","Tételszám","Tétel szövege","Menny.","Egység","Anyag egységár","Díj egységre","Anyag összesen","Díj összesen"]
[1,"12-005-8.","Felvonulási csatlakozóhely főkapcsolóval világítási és erőátviteli mérőhely részére",1,"klt",0,0,{"$f":"ROUND(D2*F2, 0)","v":0},{"$f":"ROUND(D2*G2, 0)","v":0}]
[]
[null,null,"Munkanem összesen:",{"$nulls":4},{"$f":"ROUND(SUM(H2:H3),0)","v":0},{"$f":"ROUND(SUM(I2:I3),0)","v":0}]

{"sheet":"Költségtérítés tételek","index":3,"n_rows":5,"n_cols":9,"rows_kept":5,"cut":false,"hidden":false,"merged":[]}
["Ssz.","Tételszám","Tétel szövege","Menny.","Egység","Anyag egységár","Díj egységre","Anyag összesen","Díj összesen"]
[1,"19-090-1","Építmények átadás előtti utolsó takarítása",1,"db     ",0,0,{"$f":"ROUND(D2*F2, 0)","v":0},{"$f":"ROUND(D2*G2, 0)","v":0}]
[2,"21-011-11.3","Építési törmelék konténeres elszállítása, lerakása, lerakóhelyi díjjal, 5,0 m³-es konténerbe",1,"db     ",0,0,{"$f":"ROUND(D3*F3, 0)","v":0},{"$f":"ROUND(D3*G3, 0)","v":0}]
[3,"21-011-12","Munkahelyi depóniából építési törmelék konténerbe rakása, kézi erővel, önálló munka esetén elszámolva, konténer szállítás nélkül",3.5,"m3",0,0,0,0]
[null,null,"Munkanem összesen:",{"$nulls":4},{"$f":"ROUND(SUM(H2:H4),0)","v":0},{"$f":"ROUND(SUM(I2:I4),0)","v":0}]

{"sheet":"Fa szerkezetek, hidegburkolás","index":4,"n_rows":12,"n_cols":9,"rows_kept":12,"cut":false,"hidden":false,"merged":[]}
["Ssz.","Tételszám","Tétel szövege","Menny.","Egység","Anyag egységár","Díj egységre","Anyag összesen","Díj összesen"]
[1,"44-00-3","Beépített asztalok, székek kézi-gépi bontása",1,"klt",0,0,{"$f":"ROUND(D2*F2, 0)","v":0},{"$f":"ROUND(D2*G2, 0)","v":0}]
[2,"44-00-4","Fa lambéria bontása",3.8,"m2",0,0,{"$f":"ROUND(D3*F3, 0)","v":0},{"$f":"ROUND(D3*G3, 0)","v":0}]
[3,"44-006-3-0210003","Fa lambéria elhelyezése, szerelése beépített éklécekre, Fenyő lambéria, 1,75-2,75 m-ig",3.8,"m2",0,0,{"$f":"ROUND(D4*F4, 0)","v":0},{"$f":"ROUND(D4*G4, 0)","v":0}]
[4,"44-090-102","Fa lambéria javítása, pótlása, tartószerkezet építése, ülőfelület támlarésze és falburkolat lábazati részénél. Ablakok javítása faanyag pótlással.",1,"klt",0,0,{"$f":"ROUND(D5*F5, 0)","v":0},{"$f":"ROUND(D5*G5, 0)","v":0}]
[5,"K tétel","Fa lambéri hézagainak kitöltés festhető tömítő anyaggal, 3-4mm vastagságig",85,"fm",0,0,0,0]
[6,"42-090-5.1","Lábazati lapburkolat javítása, egy-egy lap kivésésével, pótlásával,10x20 cm-es mozaiklap, 10 cm szélességben",6,"m",0,0,0,0]
[7,"42-071-14","Lépcsőprofil elhelyezése lépcsőfellépők biztonságos kialakításához utólagos elhelyezéssel fém L profillal",1.8,"m",0,0,0,0]
[8,"42-090-5.2","Asztalok és székek bontása utáni  csavarfuratok és lapburkolat közötti fugarészek javítása meglévővel azonos színben",1,"klt",0,0,0,0]
[]
[null,null,"Munkanem összesen:",{"$nulls":4},{"$f":"ROUND(SUM(H2:H9),0)","v":0},{"$f":"ROUND(SUM(I2:I9),0)","v":0}]
[{"$nulls":8},","]

{"sheet":"Vakolás és rabicolás","index":5,"n_rows":6,"n_cols":9,"rows_kept":6,"cut":false,"hidden":false,"merged":[]}
["Ssz.","Tételszám","Tétel szövege","Menny.","Egység","Anyag egységár","Díj egységre","Anyag összesen","Díj összesen"]
[1,"36-000-1.1","Vakolat leverése oldalfalról vagy mennyezetről 1,5 cm vastagságig",12,"m2",0,0,{"$f":"D2*F2","v":0},{"$f":"D2*G2","v":0}]
[2,"36-00-18","Téglafelület fugáinak tisztítása 2 cm mélységben",12,"m2",0,0,{"$f":"D3*F3","v":0},{"$f":"D3*G3","v":0}]
[3,"36-012-2.1.3.1-0415953","Szellőző, falszárító felújító vakolat készítése, alacsony és közepes só és nedvességtartalom esetén, felületelőkészítéssel (előfröcskölés vagy gúz), vakolatréteggel, kézi felhordással, összesen 2 cm vastagságban Baumit Sanova S Sanova nehéz vakolat, Cikkszám: 153104 + Baumit SanovaVorspritzer Előfröcskölő, Cikkszám: 153105",12,"m2",0,0,{"$f":"D4*F4","v":0},{"$f":"D4*G4","v":0}]
[4,"36-003-1.1.1.1.1-0415920","Falszárító, felújító vakolaton simítóvakolat készítése, 5 mm vastagságban, Baumit SanovaFeinputcz",12,"m2",0,0,0,0]
[null,null,"Munkanem összesen:",{"$nulls":4},{"$f":"ROUND(SUM(H2:H5),0)","v":0},{"$f":"ROUND(SUM(I2:I5),0)","v":0}]

{"sheet":"Szárazépítészet","index":6,"n_rows":5,"n_cols":9,"rows_kept":5,"cut":false,"hidden":false,"merged":[]}
["Ssz.","Tételszám","Tétel szövege","Menny.","Egység","Anyag egységár","Díj egységre","Anyag összesen","Díj összesen"]
[1,"39-005-4.2-0000009","Dobozolás készítése, - vízszintes normál gipszkarton lapokkal, CW 50-es profilvázra egyoldali szereléssel készülő szerkezet, Vízáló gipszkarton borítással RIGIPS 1 rtg. GKBI 12,5 gipszkarton borítással  szigeteléssel 60 cm kiterített szélesséig",15,"m",0,0,{"$f":"D2*F2","v":0},{"$f":"D2*G2","v":0}]
[2,"39-003-21.9.1.2","Kiegészítő mellékmunkák,szerelő (revíziós) nyílás beépítése, műanyag 300x300 mm",5,"db",0,0,{"$f":"D3*F3","v":0},{"$f":"D3*G3","v":0}]
[]
[null,null,"Munkanem összesen:",{"$nulls":4},{"$f":"ROUND(SUM(H2:H3),0)","v":0},{"$f":"ROUND(SUM(I2:I3),0)","v":0}]

{"sheet":"Felületképzés (festés, mázolás,","index":7,"n_rows":43,"n_cols":9,"rows_kept":43,"cut":false,"hidden":false,"merged":[]}
["Ssz.","Tételszám","Tétel szövege","Menny.","Egység","Anyag egységár","Díj egységre","Anyag összesen","Díj összesen"]
[1,"47-010-1.1.1-0415916","Normál nem egyenletes nedvszívóképességű ásványi falfelületek alapozása, felületmegerősítése, vizes-diszperziós akril bázisú alapozóval, tagolatlan felületen Baumit Mélyalapozó Cikkszám: 953208",145,"m2     ",0,0,{"$f":"ROUND(D2*F2, 0)","v":0},{"$f":"ROUND(D2*G2, 0)","v":0}]
[]
[2,"47-010-2.1.1-0148295","Enyhén nedvszívó vagy sima falfelületek, tapadásközvetítő alapozása, vizes-diszperziós, akril bázisú alapozóval, tagolatlan felületen, Baumit Divina Primer - kül- és beltéri alapozó",12,"m2",0,0,{"$f":"ROUND(D4*F4, 0)","v":0},{"$f":"ROUND(D4*G4, 0)","v":0}]
[]
[3,"47-011-15.1.1.1-0151171","Diszperziós festés műanyag bázisú vizes-diszperziós  fehér vagy gyárilag színezett festékkel, új vagy régi lekapart, előkészített alapfelületen, vakolaton, két rétegben, tagolatlan sima felületen Héra diszperziós belső falfesték, fehér, EAN: 5995061999118",145,"m2     ",0,0,{"$f":"ROUND(D6*F6, 0)","v":0},{"$f":"ROUND(D6*G6, 0)","v":0}]
[]
[4,"47-011-15.1.1.1-0148286","Diszperziós festés (két rétegben), műanyag bázisú vizes-diszperziós fehér vagy gyárilag színezett festékkel,új vagy régi lekapart, előkészített alapfelületen,vakolaton, két rétegben, tagolatlan sima felületen Baumit Divina Pro - hófehér, páraáteresztő matt diszperziós beltéri falfesték",12,"m2",0,0,{"$f":"ROUND(D8*F8, 0)","v":0},{"$f":"ROUND(D8*G8, 0)","v":0}]
[]
[5,"47-000-007.1.2.2-K","Fafelületek mázolásának előkészítő és részmunkái, régi olajmázolás átkaparása (raskettázás) csiszolása",19,"m2",0,0,{"$f":"ROUND(D10*F10, 0)","v":0},{"$f":"ROUND(D10*G10, 0)","v":0}]
[null,null,"ablakok"]
[6,"47-000-007.1.2.2-K","Fafelületek mázolásának előkészítő és részmunkái, régi olajmázolás átkaparása (raskettázás) csiszolása",29,"m2",0,0,{"$f":"ROUND(D12*F12, 0)","v":0},{"$f":"ROUND(D12*G12, 0)","v":0}]
[null,null,"ajtók"]
[7,"47-000-007.1.2.2-K","Fafelületek mázolásának előkészítő és részmunkái, régi olajmázolás átkaparása (raskettázás) csiszolása",198,"m2",0,0,{"$f":"ROUND(D14*F14, 0)","v":0},{"$f":"ROUND(D14*G14, 0)","v":0}]
[]
[8,"47-000-004.1.5-K","Acélfelületek mázolásának előkészítő és részmunkái, régi felület csiszolása",81,"m",0,0,{"$f":"ROUND(D16*F16, 0)","v":0},{"$f":"ROUND(D16*G16, 0)","v":0}]
[]
[9,"47-000-004.1.5-K","Acélfelületek mázolásának előkészítő és részmunkái, fűtőtest régi felület átcsiszolása",3,"m2",0,0,{"$f":"ROUND(D18*F18, 0)","v":0},{"$f":"ROUND(D18*G18, 0)","v":0}]
[]
[10,"47-000-7.3.1-0150113","Fafelületek mázolásának előkészítő és részmunkái; simító tapaszolás fafelületen, egyszeri és minden további, tagolatlan felületen Unikitt Mestertapasz, EAN: 5995061595457 ",19,"m2",0,0,{"$f":"ROUND(D20*F20, 0)","v":0},{"$f":"ROUND(D20*G20, 0)","v":0}]
[]
[11,"47-000-7.3.1-0150113","Fafelületek mázolásának előkészítő és részmunkái; simító tapaszolás fafelületen, egyszeri és minden további, tagolatlan felületen Unikitt Mestertapasz, EAN: 5995061595457 ",29,"m2",0,0,{"$f":"ROUND(D22*F22, 0)","v":0},{"$f":"ROUND(D22*G22, 0)","v":0}]
[]
[12,"47-031-3.1.1.1-0130700","Külső- belső  fafelületek alapmázolása, műgyantabázisú (alkid) oldószertartalmú alapozóval, tagolatlan felületen Trinát alapozófesték,  meglévő színnel azonos",19,"m2",0,0,{"$f":"ROUND(D24*F24, 0)","v":0},{"$f":"ROUND(D24*G24, 0)","v":0}]
[]
[13,"47-031-001.1.1.1.1-0130701","Belső  fafelületek alapmázolása, műgyantabázisú (alkid) oldószertartalmú alapozóval, tagolatlan felületen Trinát alapozófesték,  meglévő színnel azonos",29,"m2",0,0,{"$f":"ROUND(D26*F26, 0)","v":0},{"$f":"ROUND(D26*G26, 0)","v":0}]
[]
[14,"47-031-001.1.1.1.1-0130701","Belső  fafelületek alapmázolása, műgyantabázisú (alkid) oldószertartalmú alapozóval, tagolatlan felületen Trinát alapozófesték,  meglévő színnel azonos",198,"m2",0,0,{"$f":"ROUND(D28*F28, 0)","v":0},{"$f":"ROUND(D28*G28, 0)","v":0}]
[]
[15,"47-021-021.4.1-0130701","Acélfelületek közbenső festése cső és regisztercső felületén ( NÁ 80-ig),  függesztőn és tartóvason, műgyantabázisú (alkid) oldószeres festékkel, Trinát univerzális alapozófesték,  meglévő színnel azonos",81,"m",0,0,{"$f":"ROUND(D30*F30, 0)","v":0},{"$f":"ROUND(D30*G30, 0)","v":0}]
[]
[16,"47-021-021.5.1-0130701","Acélfelületek közbenső festése fűtőtesten, műgyantabázisú (alkid) oldószeres festékkel, Trinát univerzális alapozófesték,  meglévő színnel azonos",3,"m2",0,0,{"$f":"ROUND(D32*F32, 0)","v":0},{"$f":"ROUND(D32*G32, 0)","v":0}]
[]
[17,"47-031-3.5.1.1-0130360","Külső-belső  fafelületek zománclakkozása, műgyantabázisú (alkid) oldószertartalmú zománccal, tagolatlan felületen Trinát magasfényű zománcfesték, meglévő színnel azonos",19,"m2",0,0,{"$f":"ROUND(D34*F34, 0)","v":0},{"$f":"ROUND(D34*G34, 0)","v":0}]
[]
[18,"47-031-3.5.1.1-0130361","Belső  fafelületek zománclakkozása műgyantabázisú (alkid) oldószertartalmú alapozóval, tagolatlan felületen Trinát alapozófesték,  meglévő színnel azonos",29,"m2",0,0,{"$f":"ROUND(D36*F36, 0)","v":0},{"$f":"ROUND(D36*G36, 0)","v":0}]
[]
[19,"47-031-3.5.1.1-0130361","Belső  fafelületek zománclakkozása műgyantabázisú (alkid) oldószertartalmú alapozóval, tagolatlan felületen Trinát alapozófesték,  meglévő színnel azonos",198,"m2",0,0,{"$f":"ROUND(D38*F38, 0)","v":0},{"$f":"ROUND(D38*G38, 0)","v":0}]
[]
[20,"47-021-0231.4.1-0130361","Acélfelületek átvonó festése cső és regisztercső felületén ( NÁ 80-ig),  függesztőn és tartóvason, műgyantabázisú (alkid) oldószeres festékkel, Trinát univerzális alapozófesték,  meglévő színnel azonos",81,"m",0,0,{"$f":"ROUND(D40*F40, 0)","v":0},{"$f":"ROUND(D40*G40, 0)","v":0}]
[]
[21,"47-021-0315.1-0130361","Acélfelületek átvonó festése fűtőtesten, műgyantabázisú (alkid) oldószeres festékkel, Trinát univerzális alapozófesték, meglévő színnel azonos",3,"m2",0,0,{"$f":"ROUND(D42*F42, 0)","v":0},{"$f":"ROUND(D42*G42, 0)","v":0}]
[null,null,"Munkanem összesen:",{"$nulls":4},{"$f":"ROUND(SUM(H2:H42),0)","v":0},{"$f":"ROUND(SUM(I2:I42),0)","v":0}]

{"sheet":"Takarítási munkák","index":8,"n_rows":6,"n_cols":9,"rows_kept":6,"cut":false,"hidden":false,"merged":[]}
["Ssz.","Tételszám","Tétel szövege","Menny.","Egység","Anyag egységár","Díj egységre","Anyag összesen","Díj összesen"]
[1,"90-008-1-0190081","Festés előtt burkolatok takarásának készítése Agró fólia, 0,20 mm",0.7,"100 m2 ",0,0,{"$f":"ROUND(D2*F2, 0)","v":0},{"$f":"ROUND(D2*G2, 0)","v":0}]
[]
[2,"90-008-2","Festés után burkolatok takarásának felszedése",0.7,"100 m2 ",0,0,{"$f":"ROUND(D4*F4, 0)","v":0},{"$f":"ROUND(D4*G4, 0)","v":0}]
[]
[null,null,"Munkanem összesen:",{"$nulls":4},{"$f":"ROUND(SUM(H2:H5),0)","v":0},{"$f":"ROUND(SUM(I2:I5),0)","v":0}]